Cogmind - Beta 13 X1 *** ADVENTURER MODE // 2023.07.20 @ 18:17:46 Player: Minty Result: Destroyed by as-31423 with Assembled Heavy Rifle Performance ------------- Evolutions (0) 0 Regions Visited (0) 0 Robots Destroyed (0) 0 Value Destroyed (0) 0 Prototype IDs (0) 0 Alien Tech Used (0) 0 Bonus (0) 0 TOTAL SCORE: 0 Bonus ------- None Cogmind --------- Core Integrity 0/250 Matter 282/300 Energy 100/100 System Corruption 0% Temperature Cool (0) Movement Core (50) Location -11/Junkyard Parts ------- > --- POWER (1) -------- (None) > --- PROPULSION (2) --- Light Treads > --- UTILITY (2) ------ (None) > --- WEAPON (2) ------- (None) > --- INVENTORY (5) ---- Light Treads Wheel Wheel Peak State ------------ > --- POWER ------------ Light Ion Engine > --- PROPULSION ------- Aluminum Leg Aluminum Leg > --- UTILITY ---------- Small Storage Unit > --- WEAPON ----------- Medium Laser Assault Rifle > --- INVENTORY -------- Light Ion Engine Light Treads Light Treads Wheel Wheel Assault Rifle [Rating: 6] Favorites ----------- Power Light Ion Engine Engine Light Ion Engine Propulsion Aluminum Leg Treads Light Treads Leg Aluminum Leg Utility Small Storage Unit Storage Small Storage Unit Weapon Assault Rifle Energy Gun Medium Laser Ballistic Gun Assault Rifle Build | -11 ------- Run | Jun Slots Evolved . | . Power . | . Propulsion . | . Utility . | . Weapon . | . Parts Attached 2 | 2 Power . | . Engine . | . Core . | . Reactor . | . Propulsion 1 | 1 Treads 1 | 1 Leg . | . Wheel . | . Hover . | . Flight . | . Utility . | . Device . | . Storage . | . Processor . | . Hackware . | . Protection . | . Artifact . | . Weapon 1 | 1 Energy Gun . | . Energy Cannon . | . Ballistic Gun 1 | 1 Ballistic Cannon . | . Launcher . | . Special Weapon . | . Impact Weapon . | . Slashing Weapon . | . Piercing Weapon . | . Special Melee Weapon . | . Unidentified Prototypes . | . Parts Lost 1 | 1 Power . | . Propulsion . | . Utility . | . Weapon 1 | 1 Highest Loss Streak 1 | 1 To Critical Strikes . | . Average Slot Usage (%) . | . Naked Turns . | . Heaviest Build 12 | 12 Greatest Support 20 | 20 Greatest Overweight (x) . | . Average Overweight (x) . | . Largest Inventory Capacity 8 | 8 Average Capacity 7 | 7 Most Carried 6 | 6 Average Carried 5 | 5 Final Capacity 5 | 5 Final Carried 3 | 3 Class Distribution -------------------- None Dominant Class ---------------- None Resources | -11 ----------- Run | Jun Matter Collected 200 | 200 Remotely . | . Salvage Created 16 | 16 Parts . | . Haulers Intercepted . | . Recyclers Shooed . | . Parts Field Recycled . | . Retrieved Matter . | . Parts Self-Destructed . | . Prevented . | . Kills | -11 ------- Run | Jun Combat Hostiles Destroyed 1 | 1 Guns 1 | 1 Classes Destroyed 1 | 1 Assembled 1 | 1 Best Kill Streak 1 | 1 Combat Bots Only 1 | 1 Max Kills in Single Turn 1 | 1 Gunslinging . | . Exploded . | . Melee . | . Uniques/NPCs Destroyed . | . Combat | -11 -------- Run | Jun Damage Taken 514 | 514 Core 257 | 257 Absorbed by Shields . | . Ignored by Resistances 144 | 144 Core Remaining (%) . | . Volleys Fired 1 | 1 Largest 1 | 1 Hottest 20 | 20 Shots Fired 1 | 1 Gun 1 | 1 Cannon . | . Launcher . | . Special . | . Kinetic 1 | 1 Thermal . | . Explosive . | . Electromagnetic . | . Robot Hit Streak 1 | 1 Robot Miss Streak . | . Penetration Max . | . Secondary Targets . | . Shots Hit Robots 1 | 1 Core Hits 1 | 1 Critical Kills . | . Critical Parts Destroyed . | . Critical Strikes . | . Melee Attacks . | . Impact . | . Slashing . | . Piercing . | . Sneak Attacks . | . Combat Hostiles . | . Follow-up Attacks . | . Damage Inflicted 13 | 13 Guns 13 | 13 Cannons . | . Explosions . | . Melee . | . Ramming . | . Kinetic 13 | 13 Thermal . | . Explosive . | . Electromagnetic . | . Impact . | . Slashing . | . Piercing . | . Highest Corruption . | . Average Corruption . | . Corruption Purged . | . Corruption Blocked . | . Overload Shots . | . Overflow Damage . | . Projectiles . | . Explosions . | . Melee . | . Knockbacks . | . Impact . | . Kinetic . | . Secondary . | . Self-Inflicted Damage . | . Shots . | . Rammed . | . Targets Rammed . | . Kicked . | . Crushed . | . Highest Temperature 5 | 5 Average Temperature 5 | 5 Received Heat Transfer 40 | 40 Siege Activations . | . Robots Corrupted . | . Combat Hostiles . | . Parts Fried . | . Impact Corruptions . | . Robots Melted . | . Combat Hostiles . | . Parts Melted . | . Heat Transferred . | . Parts Sabotaged . | . Parts Stolen . | . Parts Stripped . | . Power Chain Reactions . | . Missiles Intercepted . | . Alert | -11 ------- Run | Jun Peak Influence 15 | 15 Initial . | . Average . | . Maximum Alert Level . | . Low Security (%) 100 | 100 Level 1 . | . Level 2 . | . Level 3 . | . Level 4 . | . Level 5 . | . High Security . | . Max Security . | . Squads Dispatched . | . Investigation . | . Extermination . | . Reinforcement . | . Assault . | . Garrison . | . Intercept . | . Searches Triggered . | . Construction Impeded . | . Haulers Reinforced . | . Active Scanning Responses . | . Cargo Convoy Interrupts . | . Stealth | -11 --------- Run | Jun Distress Signals . | . Communications Jammed . | . Distress Signals . | . Times Spotted 22 | 22 Peak Tracking Total 20 | 20 Tactical Retreats 2 | 2 Traps | -11 ------- Run | Jun Traps Triggered . | . Indirectly . | . Trap Hack Attempts . | . Triggered . | . Disarmed . | . Reprogrammed . | . Reused . | . Traps Extracted . | . Installed . | . Triggered . | . Machines | -11 ---------- Run | Jun Machines Disabled . | . Max in Single Turn . | . Machines Repaired . | . Machines Sabotaged . | . Overloaded Fab Kills . | . Hacking | -11 --------- Run | Jun Machines Accessed . | . Terminals . | . Fabricators . | . Repair Stations . | . Recycling Units . | . Scanalyzers . | . Garrison Access . | . Total Hacks . | . Successful . | . Failed . | . Catastrophic . | . Database Lockouts . | . Manual . | . Terminals . | . Fabricators . | . Repair Stations . | . Recycling Units . | . Scanalyzers . | . Garrison Access . | . Terminal Hacks . | . Fabricator Hacks . | . Repair Station Hacks . | . Recycling Unit Hacks . | . Scanalyzer . | . Garrison Access Hacks . | . Unauthorized Hacks . | . Terminals . | . Fabricators . | . Repair Stations . | . Recycling Units . | . Scanalyzers . | . Garrison Access . | . Data Cores Recovered . | . Used . | . Hacking Detections . | . Full Trace Events . | . Feedback Events . | . Feedback Blocked . | . Robot Schematics Acquired . | . Robots Built . | . Authchips . | . Time . | . Total Robot Build Rating . | . Part Schematics Acquired . | . Parts Built . | . Authchips . | . Time . | . Total Part Build Rating . | . Parts Repaired . | . Time . | . Parts Recycled . | . Recycled Matter . | . Retrieved Matter . | . Retrieved Components . | . Parts Scanalyzed . | . Part Schematics Acquired . | . Parts Damaged . | . Bothacking | -11 ------------ Run | Jun Used RIF Installer . | . Robots Hacked . | . Non-combat . | . Combat . | . Robot Hacks Applied . | . Relay Couplers Released . | . Fabnet Peak Effective % . | . Robots Rewired . | . Allies Hacked . | . Hacks Repelled . | . Allies | -11 -------- Run | Jun Total Allies . | . Largest Group . | . Highest-Rated Group . | . Highest-Rated Ally . | . Total Orders . | . Ally Attacks . | . Total Damage . | . Kills . | . Allies Corrupted . | . Allies Melted . | . Intel | -11 ------- Run | Jun Robot Analysis Total . | . Derelict Logs Recovered . | . Drone Launches . | . Drone Recoveries . | . Exploration | -11 ------------- Run | Jun Turns Passed 1592 | 1592 Spaces Moved 156 | 156 Core 50 | 50 Treads 5 | 5 Legs 101 | 101 Wheels . | . Hover . | . Flight . | . Fastest Speed 50 | 50 Average Speed 98 | 98 Slowest Speed 160 | 160 Overloaded Moves . | . Propulsion Burnouts . | . Robots Hopped . | . Cave-ins Triggered . | . Exploration Rate (%) 22 | 22 Regions Visited . Branch Regions . Pre-discovered Areas . | . Known Exits Taken . | . Unknown Exits Taken . | . Scrap Searched . | . Spaces Dug . | . Terrain Destroyed . | . Melee . | . Projectile . | . AOE . | . Terrain Rammed . | . Walls Destroyed . | . Machines Disabled . | . Actions | -11 --------- Run | Jun Total 1592 | 1592 Wait 1431 | 1431 Move 156 | 156 Hop . | . Pick Up . | . Fast Attach . | . Attach 2 | 2 Detach . | . Swap . | . Drop . | . Fire 1 | 1 Melee . | . Ram . | . Kick . | . Crush . | . Escape Stasis . | . Rewire 2 | 2 Trap . | . Miscellaneous . | . Route ------- -11/Junkyard (discovered 1 exit: [*Mat]) History --------- Turn | Location | Event 1 | -11/Junkyard | Discovered new exit (range 3) 1538 | -11/Junkyard | Assembled infested the area 1554 | -11/Junkyard | Released all parts (6) 1567 | -11/Junkyard | Core integrity fell below 50% 1572 | -11/Junkyard | Core integrity fell below 20% 1593 | -11/Junkyard | Destroyed by as-31423 with Assembled Heavy Rifle Last Messages --------------- 01554_ as-19710 sneak attacks. 01554_ K-01 Serf destroyed. 01565_ C-30 ARC bursts open, deploying its payload. 01565_ D-53 Grenadier unfolds itself. 01568_ as-19710 destroyed. 01568_ as-56772 destroyed. 01568_ as-67360 destroyed. 01569_ Assault Rifle destroyed. 01570_ as-96517 destroyed. 01570_ as-80846 destroyed. 01570_ as-87658 destroyed. 01570_ as-95540 destroyed. 01572_ The unstable cave ceiling collapses. 01572_ D-53 Grenadier shuts down. 01574_ Attempting to rewire D-53 Grenadier. 01575_ D-53 Grenadier destroyed. 01576_ The unstable cave ceiling collapses. 01576_ D-53 Grenadier destroyed. 01578_ The unstable cave ceiling collapses. 01589_ T-07 Excavator destroyed. Map ----- +----------------------------------------------------+ | ??????????### #### ###?????## ###### ##??? | | ??????????# ############## #??? | | ???######## % % % *!=%= #??? | | ???# % % % [[** #??? | | ???# ## ### ######=### #??? | | ???# # # #########?###????###?######??? | | ???# ##????????????????????????????? | | ???# ##??######?????????????????????? | | ???# ##### #?????????????????????? | | ???# #?????????????????????? | | ???# # = #?????????????????????? | | ???################ ###*%= #?????????????????????? | | ??????????????????###?##a ##?????????????????????? | | ???????????????????????#a #??????????????????????? | | ???????????????????????# #??????????????????????? | | ???????????????????????# #??????????????????????? | | ???????????????????????# #??????????????????????? | | ???????????????????????#a #??????????????????????? | | ?????????############### ##?######??????????????? | | ???????? #? #??????????????? | | ???????? # #??????????????? | | ???????? # #??????????????? | | ???????? #??????????????? | | ???????? # #??????????????? | | ???????? # ##??????????????? | | ?????????################@ #######???????????????? | | ????????##########???# #??????????????????? | | ????????# #???# #??????????????????? | | ?# ?????# #???# r########???????????? | | ?# # ##### ????????? | | ?# ????????? | | ?# % ### ######?????????? | | ???????## ##### < #??? ?????????????? | | ????????# #???# #???? ???????????? | | ????????# #???##########????? ??????????? | | ????????#### ####??????????????????? ??????????? | | ???????????# ???????????????????????????????????? | | ???????????# ???????????????????????????????????? | | ??????????? ????????????????????????????????????? | | ?????????? # ????????????????????????????????????? | | ????????? # ????????????????????????????????????? | | ???????? ?#?????????????????????????????????????? | | ??????? ???????????????????????????????????????? | | ???????##????????????????????????????????????????? | | ?????????????????????????????????????????????????? | | ?????????????????????????????????????????????????? | | ?????????????????????????????????????????????????? | | ?????????????????????????????????????????????????? | | ?????????????????????????????????????????????????? | | ?????????????????????????????????????????????????? | +----------------------------------------------------+ Best States ------------- Heat Dissipation 25 Energy Generation 10 Energy Capacity 125 Matter Stores 300 Matter Capacity 300 Sight Range 16 Terrain Scan Density 10 Resistance: KI 20 Resistance: TH 20 Resistance: EX 20 Resistance: EM 20 Resistance: I 20 Resistance: S 20 Resistance: P 20 Evasion (%) 55 Recoil Reduction 1 Offensive Hacking 10 Item Schematics ----------------- None Robot Schematics ------------------ None Fabricated ------------ Nothing Alien Tech Used ----------------- None Achievements -------------- Curiosity Killed The Cat Challenges ------------ None Game ------ Seed CobblerGravitonConstruct Manual? 0 Play Time 00:04:36 Cumulative 477.8 hours Start 2023.07.20 @ 18:15:21 End 2023.07.20 @ 18:17:46 Sessions 0 Manual Loads 0 Difficulty Adventurer Special Mode None Game No. 388 Rogue 167 Adventurer 78 Explorer 143 Win Type - Total 22 Types 19/0/2/0/0/0/0/1/0 Lore% 68 Gallery% 88 Achievement% 71 Wizard Run 0 Options --------- ASCII 0 Keyboard 1 Movement Numpad Keybinds 0 Fullscreen 2 Font 18/X11Bold Map View 76x50 Tactical HUD 1 Map Filters NONE Filters NONE Steam 1 RUN: ac65d909-0b1c-4079-9c1f-0234e564cfc9